[Event "Early-Titled-Tuesday-Blitz-March-26-2024"]
[Site "Chess.com"]
[Date "2024.03.26"]
[Round "9"]
[White "bazar-wokzal"]
[Black "blitzking1729"]
[Result "0-1"]
[WhiteElo "2580"]
[BlackElo "2766"]
[TimeControl "180+1"]
[EndTime "9:43:57 PDT"]
[Termination "blitzking1729 won by resignation"]

1. e4 {[%clk 0:03:00.9]} 1... d6 {[%clk 0:02:57.2]} 2. f4 {[%clk 0:03:00.8]}
2... Nf6 {[%clk 0:02:57.1]} 3. Nc3 {[%clk 0:03:00.8]} 3... c5 {[%clk 0:02:56.8]}
4. Nf3 {[%clk 0:03:01]} 4... Nc6 {[%clk 0:02:57.4]} 5. h3 {[%clk 0:03:01.1]}
5... a6 {[%clk 0:02:54.9]} 6. g4 {[%clk 0:03:00.7]} 6... b5 {[%clk 0:02:52.6]}
7. d3 {[%clk 0:03:01.2]} 7... b4 {[%clk 0:02:46.7]} 8. Ne2 {[%clk 0:03:01]} 8...
d5 {[%clk 0:02:47]} 9. e5 {[%clk 0:03:00.8]} 9... Nd7 {[%clk 0:02:47.5]} 10. e6
{[%clk 0:02:55.6]} 10... fxe6 {[%clk 0:02:46.9]} 11. d4 {[%clk 0:02:55.6]} 11...
g6 {[%clk 0:02:38]} 12. Ng5 {[%clk 0:02:50.5]} 12... Nf6 {[%clk 0:02:34.2]} 13.
dxc5 {[%clk 0:02:49.6]} 13... Bg7 {[%clk 0:02:32.8]} 14. Be3 {[%clk 0:02:45.2]}
14... O-O {[%clk 0:02:28.7]} 15. Bg2 {[%clk 0:02:44.1]} 15... e5 {[%clk
0:02:28.6]} 16. O-O {[%clk 0:02:35.8]} 16... e4 {[%clk 0:02:16.7]} 17. f5 {[%clk
0:02:17.6]} 17... gxf5 {[%clk 0:02:12.6]} 18. gxf5 {[%clk 0:02:17.6]} 18... h6
{[%clk 0:02:08.5]} 19. Ne6 {[%clk 0:02:15.8]} 19... Bxe6 {[%clk 0:02:08.7]} 20.
fxe6 {[%clk 0:02:16.7]} 20... Qc7 {[%clk 0:01:57.5]} 21. Kh1 {[%clk 0:01:57.5]}
21... Rad8 {[%clk 0:01:53.6]} 22. c3 {[%clk 0:01:52]} 22... bxc3 {[%clk
0:01:51]} 23. bxc3 {[%clk 0:01:52.5]} 23... Qe5 {[%clk 0:01:38.3]} 24. Nf4
{[%clk 0:01:48.5]} 24... Qxc3 {[%clk 0:01:37]} 25. Qe2 {[%clk 0:01:39.2]} 25...
d4 {[%clk 0:01:27.7]} 26. Bg1 {[%clk 0:01:38.9]} 26... Qxc5 {[%clk 0:01:23.5]}
27. Bxe4 {[%clk 0:01:27.4]} 27... Nxe4 {[%clk 0:01:09.4]} 28. Qxe4 {[%clk
0:01:28.3]} 28... Qe5 {[%clk 0:01:06.2]} 29. Qxc6 {[%clk 0:01:18.4]} 29... Rxf4
{[%clk 0:01:05.6]} 30. Rae1 {[%clk 0:00:54.6]} 30... Qf5 {[%clk 0:00:54.2]} 31.
Rxf4 {[%clk 0:00:54.6]} 31... Qxf4 {[%clk 0:00:53.4]} 32. Bh2 {[%clk 0:00:51]}
32... Qf5 {[%clk 0:00:45.5]} 33. Rg1 {[%clk 0:00:39.8]} 33... Qd5+ {[%clk
0:00:44.6]} 34. Qxd5 {[%clk 0:00:39.5]} 34... Rxd5 {[%clk 0:00:45.3]} 35. Bf4
{[%clk 0:00:36.5]} 35... Kh7 {[%clk 0:00:43.8]} 36. Kg2 {[%clk 0:00:35.7]} 36...
Rf5 {[%clk 0:00:23.5]} 37. Kg3 {[%clk 0:00:28.8]} 37... Be5 {[%clk 0:00:19.9]}
38. Bxe5 {[%clk 0:00:27.5]} 38... Rxe5 {[%clk 0:00:20.6]} 39. Rd1 {[%clk
0:00:27.9]} 39... Rd5 {[%clk 0:00:20.3]} 40. Kf4 {[%clk 0:00:27.4]} 40... Rd6
{[%clk 0:00:19.6]} 41. Rd3 {[%clk 0:00:24.1]} 41... Kg6 {[%clk 0:00:15.8]} 42.
Ke5 {[%clk 0:00:24.3]} 42... Kg5 {[%clk 0:00:16.1]} 43. Rxd4 {[%clk 0:00:23.5]}
43... Rxd4 {[%clk 0:00:11.6]} 44. Kxd4 {[%clk 0:00:23.9]} 44... Kf6 {[%clk
0:00:07.6]} 45. Kd5 {[%clk 0:00:24.8]} 45... Kf5 {[%clk 0:00:07.8]} 46. h4
{[%clk 0:00:20.7]} 46... h5 {[%clk 0:00:07.6]} 47. a4 {[%clk 0:00:17.7]} 47...
a5 {[%clk 0:00:07.3]} 48. Kc5 {[%clk 0:00:18]} 48... Kxe6 {[%clk 0:00:07.3]} 49.
Kb5 {[%clk 0:00:18.5]} 49... Kd5 {[%clk 0:00:05.9]} 50. Kxa5 {[%clk 0:00:19]}
50... Kc5 {[%clk 0:00:06.5]} 51. Ka6 {[%clk 0:00:19.3]} 51... e5 {[%clk
0:00:07.2]} 52. Kb7 {[%clk 0:00:19.1]} 52... Kb4 {[%clk 0:00:07]} 53. Kc6 {[%clk
0:00:19.1]} 53... e4 {[%clk 0:00:07.3]} 0-1

[Event "Early-Titled-Tuesday-Blitz-March-26-2024"]
[Site "Chess.com"]
[Date "2024.03.26"]
[Round "9"]
[White "FairChess_on_YouTube"]
[Black "dropstoneDP"]
[Result "0-1"]
[WhiteElo "3119"]
[BlackElo "3008"]
[TimeControl "180+1"]
[EndTime "9:44:00 PDT"]
[Termination "dropstoneDP won on time"]

1. Nf3 {[%clk 0:02:56.5]} 1... d5 {[%clk 0:02:59.9]} 2. g3 {[%clk 0:02:56.2]}
2... g6 {[%clk 0:03:00.3]} 3. Bg2 {[%clk 0:02:54]} 3... Bg7 {[%clk 0:03:00.9]}
4. d4 {[%clk 0:02:54.6]} 4... Nf6 {[%clk 0:03:00.8]} 5. O-O {[%clk 0:02:54.8]}
5... O-O {[%clk 0:03:01.5]} 6. c3 {[%clk 0:02:55.1]} 6... a5 {[%clk 0:03:00.7]}
7. a4 {[%clk 0:02:55]} 7... b6 {[%clk 0:03:00.5]} 8. Bf4 {[%clk 0:02:52.7]} 8...
Bb7 {[%clk 0:02:58.2]} 9. Na3 {[%clk 0:02:51.5]} 9... e6 {[%clk 0:02:55.2]} 10.
Qc1 {[%clk 0:02:45.9]} 10... Nbd7 {[%clk 0:02:50.6]} 11. Ne5 {[%clk 0:02:39.7]}
11... Nxe5 {[%clk 0:02:42.3]} 12. Bxe5 {[%clk 0:02:39.7]} 12... Qe7 {[%clk
0:02:37.1]} 13. Nb5 {[%clk 0:02:31.6]} 13... Ne8 {[%clk 0:02:32.9]} 14. c4
{[%clk 0:02:19.7]} 14... c6 {[%clk 0:02:25.9]} 15. Na3 {[%clk 0:02:09.2]} 15...
Rc8 {[%clk 0:02:22.9]} 16. Rd1 {[%clk 0:01:53.2]} 16... Ba6 {[%clk 0:02:03.6]}
17. Bxg7 {[%clk 0:01:47]} 17... Kxg7 {[%clk 0:02:01.3]} 18. e3 {[%clk
0:01:41.6]} 18... Nf6 {[%clk 0:02:00]} 19. Qc3 {[%clk 0:01:31.8]} 19... Qb4
{[%clk 0:01:57.3]} 20. Rdc1 {[%clk 0:01:17.3]} 20... c5 {[%clk 0:01:41.3]} 21.
cxd5 {[%clk 0:01:07.4]} 21... cxd4 {[%clk 0:01:34.6]} 22. Qxd4 {[%clk
0:01:06.7]} 22... Qxd4 {[%clk 0:01:33.2]} 23. exd4 {[%clk 0:01:06.5]} 23... Nxd5
{[%clk 0:01:18.4]} 24. Bxd5 {[%clk 0:01:04]} 24... exd5 {[%clk 0:01:19.3]} 25.
Nb5 {[%clk 0:00:58.2]} 25... Bxb5 {[%clk 0:01:17.8]} 26. axb5 {[%clk 0:00:59.1]}
26... Rc4 {[%clk 0:01:02.7]} 27. Kg2 {[%clk 0:00:48.9]} 27... Rfc8 {[%clk
0:00:58.9]} 28. Rd1 {[%clk 0:00:44]} 28... Rb4 {[%clk 0:00:58.5]} 29. Rd2 {[%clk
0:00:37.6]} 29... Rcc4 {[%clk 0:00:58.2]} 30. Re1 {[%clk 0:00:37.2]} 30... Rxd4
{[%clk 0:00:57.3]} 31. Rc2 {[%clk 0:00:34.6]} 31... Re4 {[%clk 0:00:54.2]} 32.
Rd1 {[%clk 0:00:33.9]} 32... Rxb5 {[%clk 0:00:53.8]} 33. Rc7 {[%clk 0:00:32.8]}
33... Re2 {[%clk 0:00:51.4]} 34. Rd3 {[%clk 0:00:31.4]} 34... Re6 {[%clk
0:00:44.4]} 35. b3 {[%clk 0:00:31.5]} 35... Rf6 {[%clk 0:00:38.8]} 36. Rd7
{[%clk 0:00:31.1]} 36... Rf5 {[%clk 0:00:37.4]} 37. g4 {[%clk 0:00:26.2]} 37...
Rf4 {[%clk 0:00:36.9]} 38. Kg3 {[%clk 0:00:18.7]} 38... Rbb4 {[%clk 0:00:34.1]}
39. h3 {[%clk 0:00:17]} 39... Rbd4 {[%clk 0:00:29.5]} 40. Rxd5 {[%clk
0:00:11.6]} 40... Rxd5 {[%clk 0:00:28.3]} 41. Rxd5 {[%clk 0:00:11]} 41... Rb4
{[%clk 0:00:28.8]} 42. Rd3 {[%clk 0:00:11.6]} 42... g5 {[%clk 0:00:28]} 43. h4
{[%clk 0:00:11.2]} 43... h5 {[%clk 0:00:28]} 44. gxh5 {[%clk 0:00:09.4]} 44...
gxh4+ {[%clk 0:00:16.7]} 45. Kh3 {[%clk 0:00:09.8]} 45... Kh6 {[%clk 0:00:17.2]}
46. Rd5 {[%clk 0:00:10]} 46... Rxb3+ {[%clk 0:00:15.7]} 47. Kxh4 {[%clk
0:00:05.5]} 47... Rb4+ {[%clk 0:00:15.4]} 48. Kg3 {[%clk 0:00:06.2]} 48... a4
{[%clk 0:00:15.7]} 49. f4 {[%clk 0:00:03.7]} 49... a3 {[%clk 0:00:16.1]} 50.
Rd6+ {[%clk 0:00:01.6]} 50... Kxh5 {[%clk 0:00:12.9]} 51. Rd7 {[%clk 0:00:02]}
51... Ra4 {[%clk 0:00:11.4]} 52. Rxf7 {[%clk 0:00:02.3]} 52... a2 {[%clk
0:00:11.8]} 0-1

[Event "Early-Titled-Tuesday-Blitz-March-26-2024"]
[Site "Chess.com"]
[Date "2024.03.26"]
[Round "9"]
[White "ChainedDowntohell"]
[Black "LikeWater"]
[Result "1/2-1/2"]
[WhiteElo "2538"]
[BlackElo "2708"]
[TimeControl "180+1"]
[EndTime "9:44:07 PDT"]
[Termination "Game drawn by repetition"]

1. d4 {[%clk 0:03:00.9]} 1... Nf6 {[%clk 0:02:58.8]} 2. c4 {[%clk 0:03:00.9]}
2... g6 {[%clk 0:02:58.8]} 3. Nc3 {[%clk 0:03:00.9]} 3... Bg7 {[%clk 0:02:58.7]}
4. e4 {[%clk 0:03:01.1]} 4... d6 {[%clk 0:02:58.9]} 5. Nge2 {[%clk 0:02:58]}
5... c5 {[%clk 0:02:56.1]} 6. dxc5 {[%clk 0:02:47.9]} 6... Qa5 {[%clk
0:02:52.4]} 7. Bd2 {[%clk 0:02:32.6]} 7... Qxc5 {[%clk 0:02:51.5]} 8. Be3 {[%clk
0:02:23]} 8... Qxc4 {[%clk 0:02:45.4]} 9. Nd4 {[%clk 0:02:20]} 9... Qb4 {[%clk
0:02:36.2]} 10. a3 {[%clk 0:02:18.2]} 10... Qa5 {[%clk 0:02:05.5]} 11. b4 {[%clk
0:02:04.4]} 11... Qd8 {[%clk 0:02:04.5]} 12. Be2 {[%clk 0:02:00.4]} 12... O-O
{[%clk 0:02:03.9]} 13. O-O {[%clk 0:02:00.6]} 13... Nc6 {[%clk 0:02:04.1]} 14.
Nxc6 {[%clk 0:01:53.3]} 14... bxc6 {[%clk 0:02:03.9]} 15. Rc1 {[%clk 0:01:47.5]}
15... a5 {[%clk 0:01:58.7]} 16. Qa4 {[%clk 0:01:23.6]} 16... Bb7 {[%clk
0:01:55.7]} 17. Rfd1 {[%clk 0:01:21.8]} 17... axb4 {[%clk 0:01:40.5]} 18. Qxb4
{[%clk 0:01:22.7]} 18... Qc8 {[%clk 0:01:33.2]} 19. Na4 {[%clk 0:01:20]} 19...
c5 {[%clk 0:01:27.4]} 20. Nxc5 {[%clk 0:01:01.5]} 20... Bc6 {[%clk 0:00:47.9]}
21. e5 {[%clk 0:00:38.8]} 21... dxc5 {[%clk 0:00:38.7]} 22. Qxc5 {[%clk
0:00:37.2]} 22... Nd7 {[%clk 0:00:26.4]} 23. Qxc6 {[%clk 0:00:33.7]} 23... Qxc6
{[%clk 0:00:27.3]} 24. Rxc6 {[%clk 0:00:33.7]} 24... Nxe5 {[%clk 0:00:28.2]} 25.
Rc7 {[%clk 0:00:20.9]} 25... Rfe8 {[%clk 0:00:19.3]} 26. Bb5 {[%clk 0:00:19.1]}
26... Reb8 {[%clk 0:00:19.6]} 27. a4 {[%clk 0:00:18.9]} 27... e6 {[%clk
0:00:17.9]} 28. g3 {[%clk 0:00:19]} 28... Ng4 {[%clk 0:00:15]} 29. Rdd7 {[%clk
0:00:17.3]} 29... Nxe3 {[%clk 0:00:13.8]} 30. fxe3 {[%clk 0:00:18.2]} 30... Rf8
{[%clk 0:00:13.8]} 31. Kg2 {[%clk 0:00:14.8]} 31... Be5 {[%clk 0:00:09.7]} 32.
Rb7 {[%clk 0:00:14.3]} 32... h5 {[%clk 0:00:08.4]} 33. h4 {[%clk 0:00:11.4]}
33... Kg7 {[%clk 0:00:08.1]} 34. Bc6 {[%clk 0:00:07.6]} 34... Ra5 {[%clk
0:00:04.9]} 35. Bb5 {[%clk 0:00:06.6]} 35... Kf6 {[%clk 0:00:05.3]} 36. Kf3
{[%clk 0:00:05.9]} 36... Raa8 {[%clk 0:00:05.7]} 37. Bc6 {[%clk 0:00:05.2]}
37... Ra5 {[%clk 0:00:05.8]} 38. Bb5 {[%clk 0:00:05.6]} 38... Bb2 {[%clk
0:00:04.9]} 39. Rbc7 {[%clk 0:00:04.4]} 39... Raa8 {[%clk 0:00:04.4]} 40. Rc4
{[%clk 0:00:03.9]} 40... Be5 {[%clk 0:00:04.2]} 41. Rc2 {[%clk 0:00:03.6]} 41...
Rac8 {[%clk 0:00:03.6]} 42. Rxc8 {[%clk 0:00:02.9]} 42... Rxc8 {[%clk
0:00:04.5]} 43. a5 {[%clk 0:00:03.6]} 43... Rc5 {[%clk 0:00:05]} 44. Rb7 {[%clk
0:00:02.8]} 44... Rc3 {[%clk 0:00:04.1]} 45. a6 {[%clk 0:00:03.3]} 45... Ra3
{[%clk 0:00:04.5]} 46. a7 {[%clk 0:00:03.9]} 46... Bd6 {[%clk 0:00:05.1]} 47.
Bc6 {[%clk 0:00:02.9]} 47... Bc5 {[%clk 0:00:05.8]} 48. Rxf7+ {[%clk 0:00:02.9]}
48... Kxf7 {[%clk 0:00:06.4]} 49. a8=Q {[%clk 0:00:03.8]} 49... Rxa8 {[%clk
0:00:06.6]} 50. Bxa8 {[%clk 0:00:04.7]} 50... Kf6 {[%clk 0:00:07.3]} 51. Be4
{[%clk 0:00:05.3]} 51... Bb6 {[%clk 0:00:08.2]} 52. Bd3 {[%clk 0:00:05.6]} 52...
Ba7 {[%clk 0:00:09.1]} 53. Bc2 {[%clk 0:00:06]} 53... Bb6 {[%clk 0:00:10]} 54.
Bd3 {[%clk 0:00:06.6]} 54... Ba7 {[%clk 0:00:10.9]} 55. Bc2 {[%clk 0:00:07.2]}
55... Bb6 {[%clk 0:00:11.8]} 56. Bb3 {[%clk 0:00:07.7]} 56... Ba7 {[%clk
0:00:12.7]} 57. Bc4 {[%clk 0:00:08.1]} 57... Bb6 {[%clk 0:00:13.3]} 58. Bd3
{[%clk 0:00:08.7]} 1/2-1/2

[Event "Early-Titled-Tuesday-Blitz-March-26-2024"]
[Site "Chess.com"]
[Date "2024.03.26"]
[Round "9"]
[White "GMG"]
[Black "Russian_berezka"]
[Result "1-0"]
[WhiteElo "2787"]
[BlackElo "2585"]
[TimeControl "180+1"]
[EndTime "9:44:13 PDT"]
[Termination "GMG won by resignation"]

1. Nf3 {[%clk 0:02:58.5]} 1... c5 {[%clk 0:02:59]} 2. c4 {[%clk 0:02:58.1]} 2...
g6 {[%clk 0:02:58.6]} 3. d4 {[%clk 0:02:52.4]} 3... cxd4 {[%clk 0:02:59.5]} 4.
Nxd4 {[%clk 0:02:52.9]} 4... Bg7 {[%clk 0:03:00.2]} 5. g3 {[%clk 0:02:51.8]}
5... Nc6 {[%clk 0:03:00.5]} 6. Nc2 {[%clk 0:02:51.9]} 6... b6 {[%clk 0:02:59.5]}
7. Bg2 {[%clk 0:02:51]} 7... Bb7 {[%clk 0:03:00.1]} 8. O-O {[%clk 0:02:49.9]}
8... Nf6 {[%clk 0:03:00.7]} 9. Nc3 {[%clk 0:02:49.8]} 9... O-O {[%clk
0:03:01.3]} 10. b3 {[%clk 0:02:47.6]} 10... Qc8 {[%clk 0:03:00.4]} 11. Bb2
{[%clk 0:02:46.7]} 11... d6 {[%clk 0:03:00.6]} 12. Ne3 {[%clk 0:02:43.8]} 12...
Ne5 {[%clk 0:03:00.2]} 13. Ned5 {[%clk 0:02:27]} 13... Nxd5 {[%clk 0:02:59.7]}
14. Nxd5 {[%clk 0:02:25.3]} 14... Qd7 {[%clk 0:02:59.3]} 15. Qd2 {[%clk
0:02:20.9]} 15... e6 {[%clk 0:02:44.6]} 16. Ne3 {[%clk 0:02:15.9]} 16... Bxg2
{[%clk 0:02:43.6]} 17. Kxg2 {[%clk 0:02:16.8]} 17... Qc6+ {[%clk 0:02:44.1]} 18.
f3 {[%clk 0:02:16]} 18... Rad8 {[%clk 0:02:43.9]} 19. Rfd1 {[%clk 0:02:13.7]}
19... Rd7 {[%clk 0:02:40.3]} 20. Rac1 {[%clk 0:02:13.2]} 20... Rfd8 {[%clk
0:02:39.9]} 21. Bd4 {[%clk 0:02:07.6]} 21... h5 {[%clk 0:02:36.6]} 22. Qc3
{[%clk 0:02:04.2]} 22... Nxf3 {[%clk 0:02:20.1]} 23. exf3 {[%clk 0:01:55.9]}
23... e5 {[%clk 0:02:18.8]} 24. Bxb6 {[%clk 0:01:51.3]} 24... axb6 {[%clk
0:02:14.6]} 25. Qd3 {[%clk 0:01:49.1]} 25... Bh6 {[%clk 0:02:11.5]} 26. Rc3
{[%clk 0:01:38]} 26... Bxe3 {[%clk 0:02:10]} 27. Qxe3 {[%clk 0:01:38.9]} 27...
Qc5 {[%clk 0:02:08.5]} 28. Rd5 {[%clk 0:01:36.2]} 28... Qxe3 {[%clk 0:02:07.8]}
29. Rxe3 {[%clk 0:01:37.1]} 29... Kf8 {[%clk 0:02:07.3]} 30. f4 {[%clk
0:01:31.1]} 30... f6 {[%clk 0:02:02.1]} 31. Rb5 {[%clk 0:01:25.6]} 31... Rb8
{[%clk 0:01:58.3]} 32. Kf3 {[%clk 0:01:17.3]} 32... Ke7 {[%clk 0:01:58.4]} 33.
Rd3 {[%clk 0:01:17.2]} 33... Ke6 {[%clk 0:01:55.6]} 34. a4 {[%clk 0:01:12.2]}
34... Rc7 {[%clk 0:01:44.5]} 35. Rbd5 {[%clk 0:01:11.2]} 35... Rc6 {[%clk
0:01:42]} 36. h3 {[%clk 0:01:03.3]} 36... Rd8 {[%clk 0:01:41]} 37. Rd1 {[%clk
0:01:00]} 37... Rc5 {[%clk 0:01:37.8]} 38. fxe5 {[%clk 0:00:53.8]} 38... fxe5
{[%clk 0:01:36.4]} 39. Ke3 {[%clk 0:00:45.8]} 39... Rxd5 {[%clk 0:01:30.4]} 40.
Rxd5 {[%clk 0:00:46.7]} 40... Kd7 {[%clk 0:01:30.9]} 41. Rd2 {[%clk 0:00:37.8]}
41... Kc6 {[%clk 0:01:30.6]} 42. Rf2 {[%clk 0:00:32.6]} 42... Kc5 {[%clk
0:01:31]} 43. Kd3 {[%clk 0:00:25.7]} 43... Kb4 {[%clk 0:01:27.9]} 44. Kc2 {[%clk
0:00:25.9]} 44... g5 {[%clk 0:01:22.8]} 45. Rf7 {[%clk 0:00:22.2]} 45... g4
{[%clk 0:01:16.3]} 46. hxg4 {[%clk 0:00:21.5]} 46... hxg4 {[%clk 0:01:16.3]} 47.
Rb7 {[%clk 0:00:22.1]} 47... Kc5 {[%clk 0:01:16.3]} 48. Rc7+ {[%clk 0:00:17.4]}
48... Kd4 {[%clk 0:01:14.5]} 49. Rc6 {[%clk 0:00:17]} 49... e4 {[%clk 0:01:15]}
50. Kd2 {[%clk 0:00:14.1]} 50... d5 {[%clk 0:01:12.4]} 51. cxd5 {[%clk
0:00:12.8]} 51... Rxd5 {[%clk 0:01:12.6]} 52. Rxb6 {[%clk 0:00:12.5]} 52... Rc5
{[%clk 0:01:13]} 53. Rd6+ {[%clk 0:00:11.9]} 53... Ke5 {[%clk 0:01:13.1]} 54.
Rd8 {[%clk 0:00:12.3]} 54... Rc6 {[%clk 0:01:06.1]} 55. a5 {[%clk 0:00:09.9]}
55... Rc5 {[%clk 0:01:05.2]} 56. b4 {[%clk 0:00:09.1]} 56... Rc4 {[%clk
0:01:05.4]} 57. b5 {[%clk 0:00:09.4]} 57... Ra4 {[%clk 0:01:03.4]} 58. a6 {[%clk
0:00:09.5]} 58... Ra5 {[%clk 0:01:00.9]} 59. Rb8 {[%clk 0:00:09.1]} 59... Kd4
{[%clk 0:01:00.5]} 60. Rb7 {[%clk 0:00:08.8]} 60... Ra2+ {[%clk 0:01:00.1]} 61.
Kc1 {[%clk 0:00:06.9]} 61... e3 {[%clk 0:01:00]} 62. Rd7+ {[%clk 0:00:05.1]}
62... Kc3 {[%clk 0:00:59.4]} 63. Rc7+ {[%clk 0:00:05]} 63... Kd3 {[%clk
0:00:59.4]} 64. Rd7+ {[%clk 0:00:04.4]} 64... Kc4 {[%clk 0:00:59.9]} 65. Re7
{[%clk 0:00:04]} 65... e2 {[%clk 0:01:00]} 66. a7 {[%clk 0:00:04.1]} 66... Kd3
{[%clk 0:00:58.7]} 67. Rd7+ {[%clk 0:00:03.6]} 67... Ke3 {[%clk 0:00:57.8]} 68.
Re7+ {[%clk 0:00:04]} 68... Kf2 {[%clk 0:00:58.4]} 69. b6 {[%clk 0:00:04.5]}
69... Ra6 {[%clk 0:00:47.3]} 70. b7 {[%clk 0:00:03.1]} 70... Rxa7 {[%clk
0:00:46.3]} 71. Rxe2+ {[%clk 0:00:03.2]} 71... Kxe2 {[%clk 0:00:47.2]} 72. b8=Q
{[%clk 0:00:03.4]} 72... Ra1+ {[%clk 0:00:46.8]} 73. Kb2 {[%clk 0:00:03.3]}
73... Rg1 {[%clk 0:00:47.5]} 74. Qf4 {[%clk 0:00:03.5]} 74... Rxg3 {[%clk
0:00:44.4]} 75. Qxg3 {[%clk 0:00:03.2]} 75... Kd2 {[%clk 0:00:45.3]} 76. Qxg4
{[%clk 0:00:03.3]} 1-0

[Event "Early-Titled-Tuesday-Blitz-March-26-2024"]
[Site "Chess.com"]
[Date "2024.03.26"]
[Round "9"]
[White "RobertDowneyJr0111"]
[Black "MatthewG-p4p"]
[Result "0-1"]
[WhiteElo "2643"]
[BlackElo "2871"]
[TimeControl "180+1"]
[EndTime "9:44:16 PDT"]
[Termination "MatthewG-p4p won on time"]

1. e4 {[%clk 0:03:00.9]} 1... c5 {[%clk 0:02:50.5]} 2. Nf3 {[%clk 0:03:01.2]}
2... g6 {[%clk 0:02:50.5]} 3. d4 {[%clk 0:03:01.9]} 3... cxd4 {[%clk 0:02:51.4]}
4. Nxd4 {[%clk 0:03:02.8]} 4... Bg7 {[%clk 0:02:52.1]} 5. c4 {[%clk 0:03:02.5]}
5... Nc6 {[%clk 0:02:52.7]} 6. Be3 {[%clk 0:03:02.7]} 6... Nf6 {[%clk
0:02:53.3]} 7. Nc3 {[%clk 0:03:02.8]} 7... O-O {[%clk 0:02:53.9]} 8. Be2 {[%clk
0:03:02.8]} 8... d6 {[%clk 0:02:53.9]} 9. O-O {[%clk 0:03:03.2]} 9... Nxd4
{[%clk 0:02:54.4]} 10. Bxd4 {[%clk 0:03:03.2]} 10... a5 {[%clk 0:02:55.1]} 11.
b3 {[%clk 0:02:59.3]} 11... Bd7 {[%clk 0:02:55.2]} 12. Rc1 {[%clk 0:02:57.9]}
12... Bc6 {[%clk 0:02:55.7]} 13. f3 {[%clk 0:02:57.5]} 13... Nd7 {[%clk
0:02:54]} 14. Be3 {[%clk 0:02:57.7]} 14... Nc5 {[%clk 0:02:53.7]} 15. Qd2 {[%clk
0:02:57.7]} 15... e6 {[%clk 0:02:54.1]} 16. Rfd1 {[%clk 0:02:54.6]} 16... Be5
{[%clk 0:02:54.1]} 17. f4 {[%clk 0:02:45.1]} 17... Bxc3 {[%clk 0:02:53.4]} 18.
Qxc3 {[%clk 0:02:41.9]} 18... Nxe4 {[%clk 0:02:53.7]} 19. Qd4 {[%clk 0:02:39.5]}
19... Qe7 {[%clk 0:02:51]} 20. Bf3 {[%clk 0:02:38.9]} 20... d5 {[%clk
0:02:17.5]} 21. cxd5 {[%clk 0:02:38.5]} 21... exd5 {[%clk 0:02:17]} 22. f5
{[%clk 0:02:39.1]} 22... Rfe8 {[%clk 0:02:11.7]} 23. Bh6 {[%clk 0:02:03.3]}
23... Qe5 {[%clk 0:01:32.2]} 24. Qxe5 {[%clk 0:01:58.1]} 24... Rxe5 {[%clk
0:01:33.1]} 25. fxg6 {[%clk 0:01:58.7]} 25... hxg6 {[%clk 0:01:32.5]} 26. Be3
{[%clk 0:01:51.5]} 26... Re6 {[%clk 0:01:21.9]} 27. Bd4 {[%clk 0:01:50.9]} 27...
Ng5 {[%clk 0:01:17.5]} 28. Kf2 {[%clk 0:01:47.7]} 28... a4 {[%clk 0:01:15.1]}
29. b4 {[%clk 0:01:42.6]} 29... a3 {[%clk 0:01:15.5]} 30. Re1 {[%clk 0:01:35.2]}
30... Nxf3 {[%clk 0:01:04.6]} 31. gxf3 {[%clk 0:01:28.2]} 31... Ra4 {[%clk
0:00:58.9]} 32. Rxe6 {[%clk 0:00:39.9]} 32... fxe6 {[%clk 0:00:59.8]} 33. Bc3
{[%clk 0:00:38.4]} 33... Bb5 {[%clk 0:00:55.5]} 34. Ke3 {[%clk 0:00:34.1]} 34...
Bc4 {[%clk 0:00:54.7]} 35. Rc2 {[%clk 0:00:34.2]} 35... Ra8 {[%clk 0:00:51.1]}
36. f4 {[%clk 0:00:32.9]} 36... Kf7 {[%clk 0:00:47.3]} 37. Be5 {[%clk
0:00:30.6]} 37... Ra4 {[%clk 0:00:44.5]} 38. Bd6 {[%clk 0:00:23.1]} 38... Ra6
{[%clk 0:00:44.5]} 39. Be5 {[%clk 0:00:22.9]} 39... Rb6 {[%clk 0:00:41.2]} 40.
Bc3 {[%clk 0:00:20.6]} 40... Rc6 {[%clk 0:00:32.5]} 41. Be5 {[%clk 0:00:16.8]}
41... Rc8 {[%clk 0:00:31.4]} 42. Kd4 {[%clk 0:00:14.3]} 42... Rg8 {[%clk
0:00:31.6]} 43. Rg2 {[%clk 0:00:12.8]} 43... Rc8 {[%clk 0:00:24]} 44. Rg3 {[%clk
0:00:12.6]} 44... Ra8 {[%clk 0:00:08.8]} 45. Rh3 {[%clk 0:00:12.5]} 45... g5
{[%clk 0:00:09.4]} 46. fxg5 {[%clk 0:00:11]} 46... Bxa2 {[%clk 0:00:08.8]} 47.
Kc5 {[%clk 0:00:10.3]} 47... Bb1 {[%clk 0:00:07.8]} 48. Ba1 {[%clk 0:00:09.2]}
48... a2 {[%clk 0:00:07.3]} 49. Kd6 {[%clk 0:00:09.7]} 49... Bf5 {[%clk
0:00:05.8]} 50. Rh6 {[%clk 0:00:09.3]} 50... Ra6+ {[%clk 0:00:06.2]} 51. Ke5
{[%clk 0:00:08.8]} 51... Rc6 {[%clk 0:00:06.7]} 52. Rf6+ {[%clk 0:00:09.2]}
52... Ke7 {[%clk 0:00:07.1]} 53. g6 {[%clk 0:00:09.2]} 53... Rc1 {[%clk
0:00:06.7]} 54. g7 {[%clk 0:00:07]} 54... Rg1 {[%clk 0:00:07.2]} 55. Rh6 {[%clk
0:00:06]} 55... Rxg7 {[%clk 0:00:04.8]} 56. Bd4 {[%clk 0:00:03.8]} 56... Rg4
{[%clk 0:00:04.7]} 57. Bc5+ {[%clk 0:00:03.1]} 57... Kd7 {[%clk 0:00:04.6]} 0-1